bitfinex/quotes_BTCUSD_20250620
["timestamp","ask_amount","ask_price","bid_price","bid_amount"]
[1750405236276,0.68066287,105510.0,105500.0,0.24910838]
[1750405237587,0.68066287,105510.0,105500.0,0.25310838]
[1750405238247,0.68066287,105510.0,105500.0,0.25610838]
[1750405239329,0.69762987,105510.0,105500.0,0.25610838]
[1750405240227,0.69762987,105510.0,105500.0,0.25734838]
[1750405241415,0.69762987,105510.0,105500.0,0.22624838]
[1750405241631,0.37155785,105510.0,105500.0,0.22624838]
[1750405241879,0.69762987,105510.0,105500.0,0.22624838]
[1750405243353,0.37155785,105510.0,105500.0,0.29134838]
[1750405243566,0.34308902,105510.0,105500.0,0.29134838]
[1750405244018,0.017017,105510.0,105500.0,0.29134838]
[1750405244230,0.34308902,105510.0,105500.0,0.29134838]
[1750405244857,0.34308902,105510.0,105500.0,0.44906838]
[1750405245280,0.017017,105510.0,105500.0,0.44906838]
[1750405245493,0.34308902,105510.0,105500.0,0.44906838]
[1750405249945,0.017017,105510.0,105500.0,0.44906838]
[1750405250182,0.34308902,105510.0,105500.0,0.44906838]
[1750405251593,5e-05,105510.0,105500.0,0.44906838]
[1750405253187,0.32612202,105510.0,105500.0,0.44906838]
[1750405253627,5e-05,105510.0,105500.0,0.44906838]
[1750405253840,0.32612202,105510.0,105500.0,0.44906838]
[1750405254933,0.32630274,105510.0,105500.0,0.44906838]
[1750405255581,0.00023072,105510.0,105500.0,0.44906838]
[1750405256019,0.32630274,105510.0,105500.0,0.44906838]
[1750405258822,0.00023072,105510.0,105500.0,0.44906838]
[1750405259029,0.32630274,105510.0,105500.0,0.44906838]
[1750405262803,0.32630274,105510.0,105500.0,0.22500838]
[1750405263045,0.82675454,105510.0,105500.0,0.38260838]
[1750405263469,0.82675454,105510.0,105500.0,0.22500838]
[1750405263691,0.50068252,105510.0,105500.0,0.38260838]
[1750405264137,0.1746105,105510.0,105500.0,0.38260838]
[1750405264580,0.50068252,105510.0,105500.0,0.38260838]
[1750405265959,0.50068252,105510.0,105500.0,0.22500838]
[1750405266171,0.50068252,105510.0,105500.0,0.38260838]
[1750405267014,0.42158167,105510.0,105500.0,0.38260838]
[1750405267225,0.32630274,105510.0,105500.0,0.38260838]
[1750405268055,0.38760274,105510.0,105500.0,0.38260838]
[1750405268502,0.38876274,105510.0,105500.0,0.38260838]
[1750405268715,0.72937561,105510.0,105500.0,0.38256838]
[1750405269338,0.40330359,105510.0,105500.0,0.38256838]
[1750405271030,0.40330359,105510.0,105500.0,0.22500838]
[1750405271242,0.40330359,105510.0,105500.0,0.38256838]
[1750405271453,0.72937561,105510.0,105500.0,0.38256838]
[1750405271662,0.72937561,105510.0,105500.0,0.22500838]
[1750405271875,0.07723157,105510.0,105500.0,0.38256838]
[1750405272081,0.72937561,105510.0,105500.0,0.38256838]
[1750405274418,1.16465454,105510.0,105500.0,0.38252838]
[1750405274845,1.19312554,105510.0,105500.0,0.38252838]
[1750405275489,1.21207991,105510.0,105500.0,0.38252838]
[1750405275699,1.21207982,105510.0,105500.0,0.38252838]
[1750405276361,1.20260259,105510.0,105500.0,0.38252838]
[1750405277017,0.00023072,105510.0,105500.0,0.38252838]
[1750405277255,0.00023072,105510.0,105500.0,0.84714534]
[1750405277479,0.00023072,105510.0,105500.0,1.13418427]
[1750405278368,0.00023072,105510.0,105500.0,0.80411225]
[1750405279021,0.00023072,105510.0,105500.0,0.96411225]
[1750405279228,0.00023072,105510.0,105500.0,0.88786731]
[1750405279440,0.00023072,105510.0,105500.0,0.88486731]
[1750405279653,0.00523072,105510.0,105500.0,0.88486731]
[1750405280521,0.01323072,105510.0,105500.0,0.88486731]
[1750405282284,0.01323072,105510.0,105500.0,0.59030838]
[1750405282502,0.33930274,105510.0,105500.0,0.52800838]
[1750405282725,0.33930274,105510.0,105500.0,0.68548838]
[1750405283873,0.33930274,105510.0,105500.0,0.37800838]
[1750405284291,0.40190274,105510.0,105500.0,0.53548838]
[1750405284710,0.33930274,105510.0,105500.0,0.53548838]
[1750405284916,0.33930274,105510.0,105500.0,0.53663838]
[1750405285123,0.01323072,105510.0,105500.0,0.59983838]
[1750405286613,0.01323072,105510.0,105500.0,0.74983838]
[1750405288745,0.01323072,105510.0,105500.0,0.71983838]
[1750405289382,0.01323072,105510.0,105500.0,0.75103838]
[1750405291382,0.01107072,105510.0,105500.0,0.75103838]
[1750405293483,0.01107072,105510.0,105500.0,0.71983838]
[1750405293700,0.01107072,105510.0,105500.0,0.68659838]
[1750405294119,0.33714274,105510.0,105500.0,0.68659838]
[1750405295184,0.01107072,105510.0,105500.0,0.68659838]
[1750405295616,0.01107072,105510.0,105500.0,0.75109838]
[1750405296265,0.01107072,105510.0,105500.0,1.32244933]
[1750405296701,0.01107072,105510.0,105500.0,0.99637731]
[1750405298433,0.01107072,105510.0,105500.0,1.32244933]
[1750405302685,0.01107072,105510.0,105500.0,0.99637731]
[1750405302932,0.01107072,105510.0,105500.0,1.32244933]
[1750405308925,0.01107072,105510.0,105500.0,1.69637731]
[1750405309130,0.01107072,105510.0,105500.0,2.02244933]
[1750405309988,5e-05,105520.0,105510.0,2.38298476]
[1750405310204,0.00917223,105550.0,105540.0,0.51792577]
[1750405310412,0.03763223,105550.0,105540.0,1.31833672]
[1750405310623,0.03763223,105550.0,105540.0,1.31951672]
[1750405310827,0.00917223,105550.0,105540.0,1.31951672]
[1750405311659,0.00917223,105550.0,105540.0,1.31998721]
[1750405311870,0.00917223,105550.0,105540.0,0.96381519]
[1750405312279,0.00917223,105550.0,105540.0,0.76367519]
[1750405312486,0.03967223,105550.0,105540.0,0.96263519]
[1750405312691,0.07267223,105550.0,105540.0,0.96263519]
[1750405312899,0.07667223,105550.0,105540.0,0.96263519]
[1750405313083,0.07667223,105550.0,105540.0,0.76367519]
[1750405313316,0.07867223,105550.0,105540.0,0.76367519]
[1750405313524,0.07867223,105550.0,105540.0,0.96263519]
[1750405314105,0.07867223,105550.0,105540.0,0.76367519]
[1750405314562,0.07867223,105550.0,105540.0,0.96259519]
[1750405314763,0.07867223,105550.0,105540.0,0.76367519]
[1750405314963,0.07867223,105550.0,105540.0,0.96259519]
[1750405315459,0.07867223,105550.0,105540.0,0.96247519]
[1750405316503,0.01517223,105550.0,105540.0,0.96247519]
[1750405318143,0.04657223,105550.0,105540.0,0.96247519]
[1750405319846,0.07787223,105550.0,105540.0,0.96247519]
[1750405320056,0.01517223,105550.0,105540.0,0.76485519]
[1750405320261,0.01517223,105550.0,105540.0,0.96361519]
[1750405321329,0.01517223,105550.0,105540.0,1.32118721]
[1750405321530,0.01517223,105550.0,105540.0,0.99511519]
[1750405321737,0.01517223,105550.0,105540.0,1.32118721]
[1750405322352,0.01517223,105550.0,105540.0,1.28968721]
[1750405322556,0.01517223,105550.0,105540.0,0.96361519]
[1750405325710,0.01517223,105550.0,105540.0,1.02601519]
[1750405325927,0.01517223,105550.0,105540.0,1.35208721]
[1750405327055,0.01517223,105550.0,105540.0,1.32138721]
[1750405327724,0.01517223,105550.0,105540.0,0.99531519]
[1750405328209,0.01517223,105550.0,105540.0,0.99651519]
[1750405330663,0.01517223,105550.0,105540.0,0.96361519]
[1750405332844,0.01517223,105550.0,105540.0,1.32078721]
[1750405333055,0.40544425,105550.0,105540.0,0.76367519]
[1750405333272,0.40544425,105550.0,105540.0,0.92075519]
[1750405333948,0.40544425,105550.0,105540.0,0.21839626]
[1750405334163,0.40663425,105550.0,105540.0,0.21839626]
[1750405334372,0.40663425,105550.0,105540.0,0.37547626]
[1750405334582,0.40663425,105550.0,105540.0,0.21839626]
[1750405334817,0.4211751,105550.0,105540.0,0.21839626]
[1750405335029,0.85199942,105550.0,105540.0,0.21839626]
[1750405335275,0.5259274,105550.0,105540.0,0.37547626]
[1750405335666,0.5259274,105550.0,105540.0,0.37543626]
[1750405335873,0.53540086,105550.0,105540.0,0.37543626]
[1750405336076,0.5448745,105550.0,105540.0,0.37543626]
[1750405336282,0.53540086,105550.0,105540.0,0.37543626]
[1750405336901,0.5199274,105550.0,105540.0,0.37543626]
[1750405337111,0.5199274,105550.0,105540.0,0.37943626]
[1750405337318,0.52940104,105550.0,105540.0,0.22039626]
[1750405337529,0.86494688,105550.0,105540.0,0.37743626]
[1750405337742,1.21442088,105550.0,105540.0,0.21839626]
[1750405337956,1.20494688,105550.0,105540.0,0.38743626]
[1750405338165,0.87887486,105550.0,105540.0,0.23039626]
[1750405338368,0.87887486,105550.0,105540.0,0.38743626]
[1750405338601,0.86940104,105550.0,105540.0,0.38743626]
[1750405340169,0.86940095,105550.0,105540.0,0.38743626]
[1750405340377,0.8599274,105550.0,105540.0,0.38743626]
[1750405340585,0.87887477,105550.0,105540.0,0.23039626]
[1750405340791,0.87887468,105550.0,105540.0,0.38743626]
[1750405341253,0.55280266,105550.0,105540.0,0.54743626]
[1750405341479,1.2144207,105550.0,105540.0,0.54743626]
[1750405341675,1.22389452,105550.0,105540.0,0.39039626]
[1750405341921,1.21442052,105550.0,105540.0,0.39039626]
[1750405342136,1.21442052,105550.0,105540.0,0.54743626]
[1750405342762,1.22389452,105550.0,105540.0,0.54739626]
[1750405343217,1.21442052,105550.0,105540.0,0.54739626]
[1750405343692,1.47289434,105550.0,105540.0,0.52844709]
[1750405343928,1.46342061,105550.0,105540.0,0.37144709]
[1750405344170,1.46342061,105550.0,105540.0,0.54739689]
[1750405344427,1.27393696,105550.0,105540.0,0.56134597]
[1750405345004,1.46342061,105550.0,105540.0,0.55834597]
[1750405345212,1.47289479,105550.0,105540.0,0.56334597]
[1750405346786,1.47289479,105550.0,105540.0,0.55387152]
[1750405347204,1.47289479,105550.0,105540.0,0.54439698]
[1750405347411,1.47289479,105550.0,105540.0,0.5538717]
[1750405347835,1.45394688,105550.0,105540.0,0.53492217]
[1750405348363,1.45394688,105550.0,105540.0,0.55387179]
[1750405348890,1.94869088,105550.0,105540.0,0.55387179]
[1750405349119,1.94869088,105550.0,105540.0,0.56334642]
[1750405349344,1.94869088,105550.0,105540.0,0.56334588]
[1750405350468,1.75920696,105550.0,105540.0,0.56334588]
[1750405350702,1.44260858,105550.0,105540.0,0.56334534]
[1750405351188,1.46155595,105550.0,105540.0,0.56334534]
[1750405351634,1.66051369,105550.0,105540.0,0.56334534]
[1750405351847,1.66051369,105550.0,105540.0,0.55387089]
[1750405352152,1.47103004,105550.0,105540.0,0.56334534]
[1750405352571,1.79710206,105550.0,105540.0,0.56334534]
[1750405353167,1.78762797,105550.0,105540.0,0.56334534]
[1750405353587,1.77815397,105550.0,105540.0,0.56334534]
[1750405354008,1.76868006,105550.0,105540.0,0.56334534]
[1750405354226,1.78762779,105550.0,105540.0,0.56334534]
[1750405355092,1.98658553,105550.0,105540.0,0.56334534]
[1750405355298,1.98658634,105550.0,105540.0,0.56334534]
[1750405356025,1.78762851,105550.0,105540.0,0.56334534]
[1750405356225,1.97711216,105550.0,105540.0,0.56334534]
[1750405356835,1.97711216,105550.0,105540.0,0.55387089]
[1750405357024,1.98658634,105550.0,105540.0,0.55387089]
[1750405357787,1.9771127,105550.0,105540.0,0.55387089]
[1750405358260,1.77815487,105550.0,105540.0,0.55387089]
[1750405358471,1.77815487,105550.0,105540.0,0.56334534]
[1750405358896,1.96763852,105550.0,105540.0,0.56334534]
[1750405359343,1.77815487,105550.0,105540.0,0.56334534]
[1750405359547,1.9771127,105550.0,105540.0,0.55387089]
[1750405360069,1.96763897,105550.0,105540.0,0.525447]
[1750405360318,1.94869088,105550.0,105540.0,0.525447]
[1750405360528,1.94869088,105550.0,105540.0,0.53492181]
[1750405360529,1.29654684,105550.0,105540.0,0.53492181]
[1750405360720,1.94869088,105550.0,105540.0,0.53492181]
[1750405360928,1.45297088,105550.0,105540.0,0.53492181]
[1750405361678,1.4434967,105550.0,105540.0,0.32647049]
[1750405361898,1.4434967,105550.0,105540.0,0.5159721]
[1750405362542,1.4434967,105550.0,105540.0,0.51221093]
[1750405362749,1.4434967,105550.0,105540.0,0.51209093]
[1750405362750,1.53876655,105550.0,105540.0,0.51209093]
[1750405362956,1.53876655,105550.0,105540.0,0.35521093]
[1750405363170,1.53876655,105550.0,105540.0,0.51209093]
[1750405363351,1.53876655,105550.0,105540.0,0.35209093]
[1750405364083,1.58020655,105550.0,105540.0,0.19521093]
[1750405364314,1.58020655,105550.0,105540.0,0.35209093]
[1750405364538,1.58020655,105550.0,105540.0,0.19521093]
[1750405364761,1.58020655,105550.0,105510.0,0.26580043]
[1750405364762,0.26280763,105520.0,105510.0,0.26580043]
[1750405364988,1.39333738,105520.0,105510.0,0.26579423]
[1750405365209,1.38386123,105520.0,105510.0,0.413157]
[1750405365420,1.08625721,105520.0,105510.0,0.42263441]
[1750405365853,1.08625721,105520.0,105510.0,0.43211173]
[1750405366507,1.07678079,105520.0,105510.0,0.20898214]
[1750405366726,1.47916919,105520.0,105510.0,0.19002678]
[1750405366959,1.38389934,105520.0,105510.0,0.37782223]
[1750405367394,1.38389934,105520.0,105510.0,0.38729982]
[1750405367663,1.38389934,105520.0,105510.0,0.37782223]
[1750405367874,1.38389934,105520.0,105510.0,0.39677732]
[1750405368064,1.47916919,105520.0,105510.0,0.39677732]
[1750405368282,1.47916919,105520.0,105510.0,0.23993732]
[1750405368493,1.47916919,105520.0,105510.0,0.39677732]
[1750405369147,1.47916919,105520.0,105510.0,0.40125473]
[1750405369582,1.47916919,105520.0,105510.0,0.40225473]
[1750405369813,1.30858478,105520.0,105510.0,0.4022541]
[1750405370044,1.31806156,105520.0,105510.0,0.3952541]
[1750405370291,1.50759908,105520.0,105510.0,0.3982541]
[1750405370510,1.31806156,105520.0,105510.0,0.3982541]
[1750405370734,0.99198954,105520.0,105510.0,0.3982541]
[1750405370948,1.19100393,105520.0,105510.0,0.3982541]
[1750405371517,0.99198954,105520.0,105510.0,0.3982541]
[1750405371744,1.19100393,105520.0,105510.0,0.3982541]
[1750405371957,1.19100393,105520.0,105510.0,0.2414141]
[1750405372174,1.19100393,105520.0,105510.0,0.3982541]
[1750405372677,1.31806156,105520.0,105510.0,0.3982541]
[1750405373396,1.30858478,105520.0,105510.0,0.3982541]
[1750405373815,1.29910773,105520.0,105510.0,0.3982541]
[1750405374446,1.20383788,105520.0,105510.0,0.3982541]
[1750405374661,0.8872421,105520.0,105510.0,0.3982541]
[1750405374882,0.87776586,105520.0,105510.0,0.3982541]
[1750405375113,0.8671598,105520.0,105510.0,0.3982541]
[1750405375387,0.8043598,105520.0,105510.0,0.3982541]
[1750405375604,0.8702998,105520.0,105510.0,0.3982541]
[1750405375833,0.87977586,105520.0,105510.0,0.4782541]
[1750405376048,0.8702998,105520.0,105510.0,0.4782541]
[1750405377368,0.8055998,105520.0,105510.0,0.4782541]
[1750405378015,0.8671998,105520.0,105510.0,0.4782541]
[1750405379629,0.87667595,105520.0,105510.0,0.4782541]
[1750405379870,0.97194571,105520.0,105510.0,0.4782541]
[1750405380287,0.87667586,105520.0,105510.0,0.4782541]
[1750405380508,0.88615201,105520.0,105510.0,0.4782541]
[1750405380725,0.87667586,105520.0,105510.0,0.4782541]
[1750405381364,0.8671998,105520.0,105510.0,0.4782541]
[1750405381789,0.87667595,105520.0,105510.0,0.4782541]
[1750405382000,0.8671998,105520.0,105510.0,0.4782541]
[1750405382418,0.87667586,105520.0,105510.0,0.4782541]
[1750405382832,0.55060384,105520.0,105510.0,0.4782541]
[1750405383022,0.87667586,105520.0,105510.0,0.4782541]
[1750405383286,0.8671998,105520.0,105510.0,0.4782541]
[1750405386435,0.8659598,105520.0,105510.0,0.4782541]
[1750405389042,0.8671998,105520.0,105510.0,0.4782541]
[1750405389476,0.87667586,105520.0,105510.0,0.3214141]
[1750405389726,0.8671998,105520.0,105510.0,0.4780941]
[1750405389969,0.87667595,105520.0,105510.0,0.4780941]
[1750405390214,0.8671998,105520.0,105510.0,0.4780941]
[1750405392335,0.87667595,105520.0,105510.0,0.4780941]
[1750405392866,0.8671998,105520.0,105510.0,0.4780941]
[1750405393081,0.87667595,105520.0,105510.0,0.4780941]
[1750405393659,0.8671998,105520.0,105510.0,0.4780941]
[1750405396766,0.87667595,105520.0,105510.0,0.4780941]
[1750405396971,0.8671998,105520.0,105510.0,0.4780941]
[1750405397190,0.88615219,105520.0,105510.0,0.4780941]
[1750405398569,0.8671998,105520.0,105510.0,0.4780941]
[1750405398795,0.87667595,105520.0,105510.0,0.4780941]
[1750405399032,0.88615228,105520.0,105510.0,0.4780941]
[1750405399504,0.87667595,105520.0,105510.0,0.4780941]
[1750405399725,0.88615219,105520.0,105510.0,0.4780941]
[1750405400415,0.87667595,105520.0,105510.0,0.4780941]
[1750405402312,0.88615228,105520.0,105510.0,0.4780941]
[1750405402526,0.87667595,105520.0,105510.0,0.4780941]
[1750405402750,0.88615228,105520.0,105510.0,0.4780941]
[1750405402964,1.20326989,105520.0,105510.0,0.4780941]
[1750405403175,1.19379374,105520.0,105510.0,0.4780941]
[1750405403387,1.20326989,105520.0,105510.0,0.4780941]
[1750405403602,1.19379374,105520.0,105510.0,0.4780941]
[1750405404259,1.20326989,105520.0,105510.0,0.4780941]
[1750405404891,1.23867777,105520.0,105510.0,0.4780941]
[1750405405104,1.24815392,105520.0,105510.0,0.4780941]
[1750405405330,1.23867777,105520.0,105510.0,0.4780941]
[1750405406583,1.2032698,105520.0,105510.0,0.4780941]
[1750405407623,1.21274604,105520.0,105510.0,0.4780941]
[1750405408059,1.2032698,105520.0,105510.0,0.4780941]
[1750405408949,1.19255374,105520.0,105510.0,0.4780941]
[1750405409168,0.80462076,105520.0,105510.0,0.4780941]
[1750405409409,1.03567481,105520.0,105510.0,0.5393941]
[1750405409671,1.07645087,105520.0,105510.0,0.3214141]
[1750405409897,1.2050398,105520.0,105510.0,0.4779341]
[1750405410109,1.19556374,105520.0,105510.0,0.4779341]
[1750405410564,1.20503989,105520.0,105510.0,0.4779341]
[1750405411052,1.21451622,105520.0,105510.0,0.4779341]
[1750405411264,1.20503989,105520.0,105510.0,0.4779341]
[1750405413775,1.19556374,105520.0,105510.0,0.4779341]
[1750405414766,1.20503989,105520.0,105510.0,0.4779341]
[1750405415234,1.13095374,105520.0,105510.0,0.4779341]
[1750405415450,1.13095374,105520.0,105510.0,0.4788441]
[1750405415660,1.1404298,105520.0,105510.0,0.4788441]
[1750405415843,1.13095374,105520.0,105510.0,0.4788441]
[1750405417618,1.1404298,105520.0,105510.0,0.4788441]
[1750405417811,1.1404298,105520.0,105510.0,0.4779341]
[1750405418474,1.13095374,105520.0,105510.0,0.4779341]
[1750405419299,1.13095374,105520.0,105510.0,0.4788441]
[1750405421528,1.13095374,105520.0,105510.0,0.4779341]
[1750405423318,0.47828778,105520.0,105510.0,0.4779341]
[1750405423529,1.13095374,105520.0,105510.0,0.4779341]
[1750405424188,1.19376374,105520.0,105510.0,0.4779341]
[1750405425394,0.54109778,105520.0,105510.0,0.4779341]
[1750405425586,1.19376374,105520.0,105510.0,0.4779341]
[1750405429798,0.54109778,105520.0,105510.0,0.4779341]
[1750405430029,1.13095374,105520.0,105510.0,0.4779341]
[1750405430881,1.13212374,105520.0,105510.0,0.4779341]
[1750405431310,1.71612374,105520.0,105510.0,0.4779341]
[1750405438297,1.06345778,105520.0,105510.0,0.4779341]
[1750405438510,1.71612374,105520.0,105510.0,0.4779341]
[1750405439563,1.71495374,105520.0,105510.0,0.4779341]
[1750405439703,1.71612374,105520.0,105510.0,0.4779341]
[1750405441408,1.71612374,105520.0,105510.0,0.4779341]
[1750405442199,1.06345778,105520.0,105510.0,0.4779341]
[1750405442409,1.71612374,105520.0,105510.0,0.4779341]
[1750405443051,1.71612374,105520.0,105510.0,0.3979341]
[1750405444753,1.71612374,105520.0,105510.0,0.4679341]
[1750405444964,1.65095374,105520.0,105510.0,0.4679341]
[1750405447871,0.99828778,105520.0,105510.0,0.4679341]
[1750405448077,1.65095374,105520.0,105510.0,0.4679341]
[1750405449061,0.99828778,105520.0,105510.0,0.4679341]
[1750405449268,1.65095374,105520.0,105510.0,0.4679341]
[1750405451061,1.71512374,105520.0,105510.0,0.4679341]
[1750405452112,1.71512374,105520.0,105510.0,0.4676141]
[1750405458031,1.7245998,105520.0,105510.0,0.4676141]
[1750405458239,1.71512374,105520.0,105510.0,0.4676141]
[1750405459216,1.71512374,105520.0,105510.0,0.4675741]
[1750405461317,1.7245998,105520.0,105510.0,0.4675741]
[1750405461466,1.71512374,105520.0,105510.0,0.4675741]
[1750405462310,1.71512374,105520.0,105510.0,0.4675341]
[1750405462743,1.7245998,105520.0,105510.0,0.4675341]
[1750405463323,1.7245998,105520.0,105510.0,0.3114141]
[1750405463536,1.7245998,105520.0,105510.0,0.4675341]
[1750405463746,1.7245998,105520.0,105510.0,0.3114141]
[1750405463958,1.7245998,105520.0,105510.0,0.4675341]
[1750405465165,1.73407595,105520.0,105510.0,0.4675341]
[1750405465414,1.7245998,105520.0,105510.0,0.4675341]
[1750405467462,1.73407604,105520.0,105510.0,0.4675341]
[1750405467669,1.7245998,105520.0,105510.0,0.4675341]
[1750405467867,1.73407595,105520.0,105510.0,0.4675341]
[1750405469890,1.71395374,105520.0,105510.0,0.4675341]
[1750405470113,1.6604298,105520.0,105510.0,0.4675341]
[1750405470596,0.99828778,105520.0,105510.0,0.3114141]
[1750405470830,0.548468,105520.0,105510.0,0.4674541]
[1750405471066,0.548468,105520.0,105510.0,0.93123202]
[1750405471549,0.548468,105520.0,105510.0,0.60489904]
[1750405472162,0.548468,105520.0,105510.0,0.60189904]
[1750405472594,0.548468,105520.0,105510.0,0.60089904]
[1750405472841,0.548468,105520.0,105510.0,0.5246541]
[1750405473199,0.87480098,105520.0,105510.0,0.5246541]
[1750405474264,0.548468,105520.0,105510.0,0.5246541]
[1750405474448,0.87480098,105520.0,105510.0,0.5246541]
[1750405474620,0.52,105520.0,105510.0,0.5246541]
[1750405475086,0.84633298,105520.0,105510.0,0.5252141]
[1750405475271,0.52,105520.0,105510.0,0.5252141]
[1750405476098,0.525,105520.0,105510.0,0.85154708]
[1750405476658,0.528,105520.0,105510.0,0.85154708]
[1750405479673,0.528,105520.0,105510.0,1.09682601]
[1750405485338,0.528,105520.0,105510.0,0.77049303]
[1750405485548,0.528,105520.0,105510.0,1.09682601]
[1750405486566,0.528,105520.0,105510.0,1.99682601]
[1750405487545,0.528,105520.0,105510.0,1.29682601]
[1750405488176,0.528,105520.0,105510.0,1.62315899]
[1750405488339,0.523,105520.0,105510.0,1.62315899]
[1750405488535,0.52,105520.0,105510.0,1.62315899]
[1750405488812,0.522,105520.0,105510.0,1.29682601]
[1750405489423,0.522,105520.0,105510.0,1.33750601]
[1750405490766,0.522,105520.0,105510.0,2.03750601]
[1750405490979,0.522,105520.0,105510.0,1.71117303]
[1750405491184,0.522,105520.0,105510.0,2.03750601]
[1750405493930,0.522,105520.0,105510.0,1.33750601]
[1750405494131,0.522,105520.0,105510.0,1.66383899]
[1750405495271,0.522,105520.0,105510.0,1.33750601]
[1750405497026,0.522,105520.0,105510.0,2.03750601]
[1750405497693,0.522,105520.0,105510.0,1.84078601]
[1750405497914,0.522,105520.0,105510.0,1.97618601]
[1750405498129,0.522,105520.0,105510.0,2.03808601]
[1750405498538,0.522,105520.0,105510.0,1.84148601]
[1750405498749,0.522,105520.0,105510.0,2.03808601]
[1750405498967,0.522,105520.0,105510.0,2.00738601]
[1750405500020,0.522,105520.0,105510.0,2.00722601]
[1750405500922,0.522,105520.0,105510.0,2.03982601]
[1750405501139,0.522,105520.0,105510.0,1.84338601]
[1750405501363,0.522,105520.0,105510.0,2.03982601]
[1750405501643,0.522,105520.0,105510.0,2.70615899]
[1750405502371,0.522,105520.0,105510.0,3.049432]
[1750405504284,0.522,105520.0,105510.0,2.349432]
[1750405504774,0.522,105520.0,105510.0,1.50032604]
[1750405504988,0.522,105520.0,105510.0,2.34881304]
[1750405505202,0.522,105520.0,105510.0,2.15241304]
[1750405505430,0.522,105520.0,105510.0,2.34881304]
[1750405506097,0.522,105520.0,105510.0,2.15241304]
[1750405506322,0.522,105520.0,105510.0,1.82636954]
[1750405506533,0.522,105520.0,105510.0,2.02272954]
[1750405507182,0.522,105520.0,105510.0,1.82636954]
[1750405507400,0.522,105520.0,105510.0,3.04877304]
[1750405507617,0.522,105520.0,105510.0,2.95550003]
[1750405508361,0.522,105520.0,105510.0,1.85649303]
[1750405508649,0.522,105520.0,105510.0,2.52889653]
[1750405509979,0.522,105520.0,105510.0,2.52945653]
[1750405510647,0.522,105520.0,105510.0,2.85550003]
[1750405512410,0.522,105520.0,105510.0,2.52945653]
[1750405513080,0.522,105520.0,105510.0,2.33309653]
[1750405513315,0.522,105520.0,105510.0,2.52941653]
[1750405515601,0.522,105520.0,105510.0,2.62268954]
[1750405516265,0.522,105520.0,105510.0,2.52941653]
[1750405517161,0.522,105520.0,105510.0,2.33309653]
[1750405517381,0.522,105520.0,105510.0,2.46557653]
[1750405518971,0.522,105520.0,105510.0,2.48454653]
[1750405519189,0.522,105520.0,105510.0,2.46557653]
[1750405520754,0.522,105520.0,105510.0,2.13953303]
[1750405520967,0.522,105520.0,105510.0,2.46557653]
[1750405522568,0.522,105520.0,105510.0,2.46501653]
[1750405523630,0.522,105520.0,105510.0,2.13893303]
[1750405523848,0.522,105520.0,105510.0,2.46497653]
[1750405524469,0.522,105520.0,105510.0,1.76497653]
[1750405524884,0.522,105520.0,105510.0,1.76553653]
[1750405525296,0.522,105520.0,105510.0,1.76549653]
[1750405528028,0.522,105520.0,105510.0,1.43945303]
[1750405528246,0.522,105520.0,105510.0,1.76549653]
[1750405529169,0.522,105520.0,105510.0,1.82599653]
[1750405529393,0.522,105520.0,105510.0,1.79599653]
[1750405529807,0.522,105520.0,105510.0,1.76549653]
[1750405530522,0.522,105520.0,105510.0,2.46549653]
[1750405531184,0.522,105520.0,105510.0,2.30997653]
[1750405531401,0.522,105520.0,105510.0,2.46549653]
[1750405533562,0.522,105520.0,105510.0,2.26929653]
[1750405533784,0.522,105520.0,105510.0,2.46533653]
[1750405537814,0.522,105520.0,105510.0,2.46529653]
[1750405538018,0.522,105520.0,105510.0,2.26929653]
[1750405538154,0.522,105520.0,105510.0,2.46529653]
[1750405538784,0.5552,105520.0,105510.0,2.46529653]
[1750405538978,0.5863,105520.0,105510.0,2.46529653]
[1750405541238,0.5863,105520.0,105510.0,2.46473653]
[1750405543240,0.5863,105520.0,105510.0,2.13869303]
[1750405543478,0.5863,105520.0,105510.0,2.46473653]
[1750405543946,0.522,105520.0,105510.0,2.46473653]
[1750405544388,0.522,105520.0,105510.0,2.46469653]
[1750405544825,0.5537,105520.0,105510.0,2.46469653]
[1750405545075,0.5864,105520.0,105510.0,2.46473536]
[1750405545544,0.5864,105520.0,105510.0,2.26877536]
[1750405545780,0.5864,105520.0,105510.0,2.13865303]
[1750405546028,0.5864,105520.0,105510.0,2.46473536]
[1750405546949,0.5864,105520.0,105510.0,2.13861303]
[1750405547154,0.5864,105520.0,105510.0,2.46469536]
[1750405548043,0.5864,105520.0,105510.0,2.26877536]
[1750405548260,0.58762,105520.0,105510.0,1.24269303]
[1750405548483,0.58762,105520.0,105510.0,1.76469536]
[1750405549170,0.91170233,105520.0,105510.0,1.04269303]
[1750405549426,0.58562,105520.0,105510.0,1.56469536]
[1750405549649,0.58962,105520.0,105510.0,1.56469536]
[1750405550096,0.5884,105520.0,105510.0,1.71469536]
[1750405550315,0.5884,105520.0,105510.0,1.91469536]
[1750405550535,0.524,105520.0,105510.0,1.91469536]
[1750405550773,0.526,105520.0,105510.0,1.71877536]
[1750405550985,0.5572,105520.0,105510.0,1.91469536]
[1750405551211,0.5892,105520.0,105510.0,1.91469536]
[1750405553436,0.5892,105520.0,105510.0,1.58861303]
[1750405553656,0.5892,105520.0,105510.0,1.91469536]
[1750405554317,0.5892,105520.0,105510.0,1.58861303]
[1750405554589,0.526,105520.0,105510.0,2.55507769]
[1750405554816,0.51059593,105520.0,105510.0,3.26961854]
[1750405555025,0.51059593,105520.0,105510.0,2.52899536]
[1750405557203,0.51059593,105520.0,105510.0,2.46469536]
[1750405559196,0.51059593,105520.0,105510.0,2.26877536]
[1750405559410,0.51059593,105520.0,105510.0,2.46461536]
[1750405559860,0.54219593,105520.0,105510.0,2.46461536]
[1750405560054,0.54219593,105520.0,105510.0,2.26877536]
[1750405560272,0.57539593,105520.0,105510.0,2.46461536]
[1750405561881,0.57539593,105520.0,105510.0,2.26877536]
[1750405562100,0.57539593,105520.0,105510.0,2.46445536]
[1750405563438,0.57660593,105520.0,105510.0,2.26877536]
[1750405563710,0.57660593,105520.0,105510.0,2.46445536]
[1750405564914,0.57660593,105520.0,105510.0,2.26877536]
[1750405565149,0.57660593,105520.0,105510.0,2.46441536]
[1750405568916,0.57660593,105520.0,105510.0,2.13833303]
[1750405569140,0.57660593,105520.0,105510.0,2.46441536]
[1750405571051,0.57660593,105520.0,105510.0,2.13833303]
[1750405571266,0.57660593,105520.0,105510.0,2.46441536]
[1750405571487,0.57660593,105520.0,105510.0,2.13833303]
[1750405571716,0.57660593,105520.0,105510.0,2.46441536]
[1750405573938,0.57539593,105520.0,105510.0,2.46441536]
[1750405580037,0.57539593,105520.0,105510.0,2.46497536]
[1750405580266,0.57539593,105520.0,105510.0,2.13889303]
[1750405580482,0.57539593,105520.0,105510.0,2.46497536]
[1750405581235,0.51059593,105520.0,105510.0,2.46497536]
[1750405582720,0.57419593,105520.0,105510.0,2.46497536]